bitfinex/quotes_ETHUSD_20260217
["timestamp","ask_amount","ask_price","bid_price","bid_amount"]
[1771309666624,0.0011,1981.3,1980.9,0.911]
[1771309667152,0.0011,1981.3,1980.9,2.66554534]
[1771309669048,0.0011,1981.3,1980.9,2.17304512]
[1771309669347,0.0011,1981.3,1980.9,0.911]
[1771309671827,0.0011,1981.3,1980.9,2.64918181]
[1771309672152,0.0011,1981.3,1981.0,5.4583477]
[1771309672462,0.0011,1981.3,1981.1,0.845]
[1771309674357,1.74510055,1981.7,1981.1,1.32113037]
[1771309674664,1.74510055,1981.7,1981.1,2.58303481]
[1771309675359,1.74510055,1981.7,1981.1,1.32113037]
[1771309675731,0.48351709,1981.6,1981.1,1.32113037]
[1771309675930,1.74517783,1981.6,1981.1,0.845]
[1771309677962,1.74517783,1981.6,1981.2,0.001]
[1771309678164,0.0011,1981.5,1981.2,0.001]
[1771309679751,0.0011,1981.5,1981.2,0.47713037]
[1771309679955,0.0011,1981.5,1981.2,5.93547807]
[1771309680157,0.0011,1981.5,1981.2,7.19733786]
[1771309680543,0.0011,1981.8,1981.3,0.47613037]
[1771309680743,0.0011,1981.9,1981.6,5.4583477]
[1771309680944,0.0011,1981.9,1981.7,0.848]
[1771309689771,0.0011,1982.0,1981.7,2.10953199]
[1771309689963,0.0011,1982.1,1981.8,5.4583477]
[1771309690276,0.0011,1982.1,1981.8,5.93447807]
[1771309690460,0.0011,1982.2,1981.8,5.93447807]
[1771309691655,0.0392314,1982.5,1982.1,0.47613037]
[1771309691981,1.26095597,1982.7,1982.2,6.3103477]
[1771309692578,1.74440991,1982.8,1982.2,7.57155686]
[1771309692754,0.48351709,1982.8,1982.4,5.4583477]
[1771309692951,0.48351709,1982.8,1982.5,0.852]
[1771309693269,1.74425387,1983.0,1982.5,0.852]
[1771309693852,0.48351709,1983.0,1982.5,0.852]
[1771309694071,0.48351709,1983.0,1982.5,2.1130294]
[1771309694268,0.48351709,1983.0,1982.5,2.11302666]
[1771309696092,1.26068269,1983.1,1982.5,2.56887506]
[1771309696403,1.74741033,1983.1,1982.5,2.56887936]
[1771309696567,1.74741033,1983.1,1982.5,1.3078484]
[1771309697458,1.74741033,1983.1,1982.5,2.56887995]
[1771309697964,1.26060556,1983.2,1982.7,0.4558484]
[1771309698288,0.48672764,1983.3,1982.8,6.3123477]
[1771309698459,0.48672764,1983.3,1982.8,7.57318868]
[1771309698656,1.74726789,1983.3,1982.8,6.3123477]
[1771309698856,1.74726789,1983.3,1982.5,0.4558484]
[1771309698857,0.48672764,1983.2,1982.5,0.4558484]
[1771309699057,0.48672764,1983.2,1982.8,0.909]
[1771309699491,0.48672764,1983.2,1982.9,0.854]
[1771309702104,1.74731826,1983.2,1982.9,0.854]
[1771309702304,5.4583477,1983.8,1982.9,0.854]
[1771309702305,0.48672764,1983.9,1983.1,0.4558484]
[1771309702509,0.48672764,1983.8,1983.2,7.2213477]
[1771309703105,0.48672764,1983.8,1983.3,1.26052538]
[1771309704797,0.48672764,1983.8,1983.3,1.26152538]
[1771309704995,0.0011,1983.7,1983.3,1.26152538]
[1771309705777,0.0011,1983.7,1983.3,0.001]
[1771309706111,0.48782764,1983.7,1983.3,0.001]
[1771309706290,0.48782764,1983.7,1983.4,0.855]
[1771309708115,0.47252764,1984.1,1983.4,8.02961573]
[1771309708891,0.48672764,1984.0,1983.4,8.02961573]
[1771309709086,0.48672764,1984.0,1983.4,2.57126803]
[1771309709493,0.48672764,1983.9,1983.4,2.11541963]
[1771309711693,0.48672764,1983.9,1983.4,7.57376733]
[1771309711993,1.74679506,1984.1,1983.4,8.02961573]
[1771309712299,0.48672764,1984.0,1983.4,8.02961573]
[1771309713297,0.48168605,1984.0,1983.4,7.57376733]
[1771309713779,0.48168605,1984.0,1983.4,8.02961573]
[1771309713985,0.48168605,1984.0,1983.4,7.57376733]
[1771309714185,0.48168605,1984.0,1983.4,8.02961573]
[1771309715501,1.74177305,1984.0,1983.5,1.766]
[1771309715706,0.48168605,1984.0,1983.5,1.766]
[1771309716389,0.48168605,1984.0,1983.5,3.02639756]
[1771309718618,0.48168605,1984.0,1983.4,5.04172622]
[1771309718794,0.48168605,1984.0,1983.5,1.767]
[1771309719196,0.0011,1983.9,1983.5,1.767]
[1771309719417,0.48672764,1984.2,1983.7,5.44223864]
[1771309719599,1.25982843,1984.4,1983.8,0.859]
[1771309719795,0.48782764,1984.2,1983.8,0.859]
[1771309722520,0.48782764,1984.2,1983.8,2.11919375]
[1771309723151,0.17707466,1986.0,1984.1,0.4558484]
[1771309723294,1.2591921,1985.4,1984.7,0.4558484]
[1771309723492,0.48672764,1985.4,1984.8,5.44223864]
[1771309723708,0.48672764,1985.4,1984.8,6.23623864]
[1771309723996,0.48672764,1985.4,1984.8,0.794]
[1771309724226,0.48672764,1985.4,1984.7,0.4558484]
[1771309724424,0.4797919,1985.6,1984.9,0.86]
[1771309724720,0.4797919,1985.6,1984.9,1.32711269]
[1771309724906,0.4797919,1985.8,1985.0,5.90935133]
[1771309725111,0.4797919,1985.6,1985.0,1.25943757]
[1771309725325,0.4797919,1985.6,1985.1,0.86]
[1771309727218,0.4797919,1985.7,1985.1,0.86]
[1771309727406,0.4797919,1985.7,1985.1,2.11934166]
[1771309728135,0.4797919,1985.8,1985.1,2.11934166]
[1771309728435,0.4797919,1986.2,1985.5,5.90935133]
[1771309728609,0.4797919,1986.2,1985.6,0.861]
[1771309729136,1.2587483,1986.1,1985.6,0.861]
[1771309729341,0.4797919,1986.3,1985.6,1.72617541]
[1771309729510,0.4797919,1986.3,1985.7,0.861]
[1771309730533,0.4797919,1986.3,1985.6,0.862]
[1771309730534,0.46703011,1986.2,1985.6,0.862]
[1771309730735,0.46703011,1986.2,1985.2,0.47898383]
[1771309730934,0.46703011,1986.2,1985.3,0.861]
[1771309731517,0.46703011,1986.0,1985.3,2.12025153]
[1771309731713,0.46703011,1986.0,1985.3,1.25925153]
[1771309731913,0.46703011,1986.0,1985.4,0.861]
[1771309732637,0.46703011,1986.0,1984.8,0.47898383]
[1771309732838,0.46703011,1986.0,1984.9,1.316]
[1771309733136,0.46703011,1986.0,1984.9,1.79498383]
[1771309733748,0.46703011,1985.8,1985.0,1.25944584]
[1771309733926,0.46703011,1985.8,1985.0,1.73842967]
[1771309734122,1.72586867,1986.0,1985.1,0.47898383]
[1771309734433,1.25883856,1986.0,1985.1,0.47898383]
[1771309734633,0.46703011,1985.9,1985.1,0.47898383]
[1771309735529,0.46703011,1985.9,1985.2,0.812]
[1771309735933,1.72596857,1985.8,1985.2,0.812]
[1771309736455,0.46703011,1985.7,1985.0,0.47898383]
[1771309736642,1.72595209,1985.9,1985.1,0.88698383]
[1771309737545,5.03535024,1986.0,1985.2,0.47898383]
[1771309737546,0.46703011,1986.0,1985.2,0.47898383]
[1771309738447,1.72590517,1985.9,1985.2,0.47898383]
[1771309739545,1.72590517,1985.9,1985.2,1.33998383]
[1771309739846,1.72590517,1985.9,1985.2,2.5992957]
[1771309740048,1.25887506,1985.9,1985.2,2.5992957]
[1771309741332,1.72590517,1985.9,1985.2,2.5992957]
[1771309742256,1.25887506,1985.9,1985.2,0.861]
[1771309742460,1.72603197,1985.7,1985.2,0.703]
[1771309742838,0.46703011,1985.6,1984.9,0.47898383]
[1771309743039,1.25898872,1985.8,1985.1,0.47898383]
[1771309743649,1.72601883,1985.8,1985.1,0.47898383]
[1771309744364,0.41703011,1985.7,1985.1,0.86]
[1771309744762,2.20184495,1987.1,1985.9,0.47898383]
[1771309744960,0.46703011,1987.0,1986.1,0.47898383]
[1771309745938,0.46703011,1987.0,1986.2,0.46237928]
[1771309746142,0.9437291,1987.1,1986.3,0.94136311]
[1771309746469,2.20184546,1987.1,1986.4,0.46237928]
[1771309746635,0.46703011,1987.0,1986.5,0.46237928]
[1771309746839,0.46703011,1987.0,1986.3,1.2585904]
[1771309747567,1.4267291,1987.1,1986.5,0.47898383]
[1771309747868,0.9437291,1987.1,1986.6,0.462315]
[1771309748049,0.46703011,1987.0,1986.3,1.2585904]
[1771309748244,0.46703011,1987.0,1986.4,0.46266125]
[1771309748445,0.46703011,1987.0,1986.3,1.2585904]
[1771309748759,0.46703011,1987.0,1986.4,0.46246156]
[1771309748760,1.72520837,1987.0,1986.4,0.46246156]
[1771309749061,0.46703011,1986.9,1986.0,1.25876418]
[1771309749263,0.46703011,1986.9,1986.1,0.46302916]
[1771309749460,0.46703011,1986.9,1986.2,0.46302916]
[1771309749665,2.66892066,1987.1,1986.3,0.46301521]
[1771309749862,0.9437291,1987.1,1986.5,0.47898383]
[1771309750062,0.9437291,1987.1,1986.2,14.76451]
[1771309750063,2.66888837,1987.1,1986.6,0.46294921]
[1771309750235,0.46703011,1988.5,1986.1,0.47898383]
[1771309750436,0.46703011,1988.1,1986.4,0.47898383]
[1771309750641,0.46703011,1988.1,1986.0,7.91705089]
[1771309750642,0.46703011,1987.8,1986.6,1.25843149]
[1771309750841,0.46703011,1987.6,1986.7,0.46303349]
[1771309751070,0.46703011,1987.6,1986.6,1.25843149]
[1771309751268,0.46703011,1987.6,1986.7,0.46331487]
[1771309751484,0.46703011,1987.6,1986.6,1.25843149]
[1771309751642,0.46703011,1987.6,1986.7,0.46307819]
[1771309751842,0.46703011,1987.6,1986.6,1.25843149]
[1771309752043,0.46703011,1987.6,1986.7,0.46304002]
[1771309752340,0.46703011,1987.6,1986.6,1.73741532]
[1771309752555,0.46703011,1987.6,1986.7,0.46329992]
[1771309752762,1.724879,1987.6,1986.8,1.25830481]
[1771309753370,0.46703011,1987.5,1986.6,1.25843149]
[1771309753677,0.46703011,1987.5,1986.7,0.46376808]
[1771309753875,0.46703011,1987.5,1986.6,1.25843149]
[1771309754077,0.46703011,1987.5,1986.7,0.46377373]
[1771309754248,0.46703011,1987.5,1986.6,1.25843149]
[1771309754571,0.46703011,1987.5,1986.2,1.7222203]
[1771309754758,0.4846463,1987.3,1986.3,5.49817307]
[1771309754953,0.4846463,1987.3,1986.4,0.4637832]
[1771309755750,0.4846463,1987.3,1986.3,1.25862155]
[1771309756058,0.4846463,1987.3,1986.3,1.7222203]
[1771309756875,0.4846463,1987.1,1986.1,0.46359875]
[1771309757048,0.4846463,1986.9,1986.1,0.46359875]
[1771309757247,0.4846463,1986.9,1985.9,0.46359875]
[1771309757475,0.4846463,1986.9,1986.0,0.46335282]
[1771309757676,0.4846463,1986.9,1985.9,0.46359875]
[1771309757878,0.4846463,1986.9,1986.0,0.46337092]
[1771309758076,0.4846463,1986.9,1985.9,0.46359875]
[1771309758282,0.4846463,1986.9,1986.0,0.46339854]
[1771309758460,0.4846463,1986.9,1985.9,0.46359875]
[1771309758650,0.4846463,1986.9,1986.0,0.46345693]
[1771309758850,0.4846463,1986.9,1986.5,0.001]
[1771309759060,1.74295111,1986.8,1986.5,0.001]
[1771309761670,0.4846463,1986.7,1986.5,0.001]
[1771309761974,0.4846463,1986.7,1985.8,1.25890886]
[1771309762478,0.4846463,1986.7,1985.7,1.72255681]
[1771309763082,1.25843149,1986.6,1985.8,0.46359875]
[1771309763377,0.876,1986.5,1985.8,0.46359875]
[1771309764169,0.4846463,1986.4,1985.6,0.46359875]
[1771309765382,1.25862155,1986.3,1985.1,0.46359875]
[1771309765561,1.25862155,1986.3,1985.3,0.46359875]
[1771309765562,2.16562155,1986.3,1985.3,0.46359875]
[1771309765762,0.907,1986.3,1985.3,0.46359875]
[1771309766459,0.907,1986.3,1985.5,0.46359875]
[1771309767077,0.876,1986.4,1985.5,0.46359875]
[1771309767474,1.25862155,1986.3,1985.6,1.72266401]
[1771309767983,2.13460534,1986.4,1985.6,1.72266401]
[1771309768284,2.13460534,1986.4,1985.7,0.46359875]
[1771309769604,2.13460534,1986.4,1985.8,1.25893846]
[1771309769909,2.13460534,1986.4,1985.8,1.72253721]
[1771309771289,2.13460534,1986.4,1985.8,0.46359875]
[1771309771614,2.13460534,1986.4,1985.6,1.72263684]
[1771309772875,2.13456113,1986.4,1985.8,0.001]
[1771309774602,2.13456113,1986.4,1985.8,0.46459875]
[1771309775394,2.13456113,1986.4,1985.8,0.001]
[1771309778606,2.13456113,1986.4,1985.8,0.46459875]
[1771309781413,2.61920743,1986.4,1985.8,0.001]
[1771309782217,0.4846463,1986.3,1985.8,0.001]
[1771309783084,1.25868492,1986.2,1985.8,0.001]
[1771309783612,1.74333122,1986.2,1985.8,0.001]
[1771309783910,0.4846463,1986.1,1985.8,0.001]
[1771309784078,1.36495593,1986.0,1985.8,0.001]
[1771309784279,1.36495593,1986.0,1985.3,0.46359875]
[1771309784484,1.36495593,1986.0,1985.3,1.25925079]
[1771309784715,1.36495593,1986.0,1985.4,0.45965008]
[1771309784883,1.36495593,1986.0,1985.2,1.71891929]
[1771309785084,1.25887506,1985.9,1985.3,0.45965008]
[1771309786303,2.65683099,1985.9,1985.0,0.45965008]
[1771309788016,2.65683099,1985.9,1985.2,0.45965008]
[1771309788391,2.65683099,1985.9,1985.4,0.001]
[1771309788986,0.49095593,1985.8,1985.4,0.001]
[1771309789392,2.65683099,1985.9,1985.4,0.001]
[1771309789805,0.49095593,1985.8,1985.4,0.001]
[1771309790331,0.49095593,1985.8,1984.8,1.71240624]
[1771309790538,0.49095593,1985.8,1984.9,0.45284247]
[1771309792023,0.48098852,1985.6,1984.7,1.71244459]
[1771309792227,0.873,1985.5,1984.6,0.45284247]
[1771309793942,1.2591921,1985.4,1984.7,1.25963621]
[1771309794128,1.2591921,1985.4,1984.5,0.45284247]
[1771309794339,0.48098852,1985.3,1984.4,0.45284247]
[1771309797943,1.25931896,1985.2,1984.5,1.25976316]
[1771309798145,1.25931896,1985.2,1984.6,0.45284247]
[1771309799259,5.90952049,1985.5,1984.6,0.45284247]
[1771309799260,0.48098852,1985.9,1984.8,0.45284247]
[1771309799547,0.48098852,1985.9,1984.6,0.45284247]
[1771309800248,0.48098852,1985.7,1984.7,1.71247868]
[1771309800451,0.48098852,1985.5,1984.7,0.45284247]
[1771309800743,0.873,1985.4,1984.7,0.45284247]
[1771309800919,1.35398852,1985.4,1984.7,0.45284247]
[1771309801638,0.873,1985.4,1984.7,0.45284247]
[1771309802427,0.873,1985.4,1984.9,0.45284247]
[1771309803145,0.873,1985.4,1984.8,1.26057275]
[1771309803344,0.873,1985.4,1984.8,1.71341522]
[1771309803721,0.873,1985.4,1984.9,0.45284247]
[1771309804442,0.873,1985.4,1985.0,1.71228831]
[1771309804815,0.873,1985.4,1985.0,1.25944584]
[1771309805026,0.873,1985.4,1985.1,0.45284247]
[1771309806149,1.78,1985.6,1985.1,0.45284247]
[1771309807544,1.78,1985.6,1985.1,1.71221661]
[1771309808113,3.0390756,1985.6,1985.0,1.25940895]
[1771309808444,3.52006412,1985.6,1984.8,1.71336951]
[1771309808746,0.48098852,1985.5,1984.8,0.001]
[1771309809849,1.74018062,1985.4,1984.8,0.001]
[1771309810153,1.2591772,1985.5,1984.8,0.001]
[1771309810451,1.2591772,1985.5,1984.8,0.45384247]
[1771309810851,1.74016572,1985.5,1984.8,0.45384247]
[1771309811621,1.74016572,1985.5,1984.8,0.001]
[1771309811851,0.48098852,1985.4,1984.8,0.001]
[1771309813957,1.25923901,1985.4,1984.8,0.45384247]
[1771309814456,1.25918869,1985.5,1984.8,0.45384247]
[1771309814634,3.5201028,1985.6,1984.8,0.45384247]
[1771309814964,3.03911428,1985.6,1984.8,0.45384247]
[1771309815540,0.48281502,1985.5,1984.8,0.001]
[1771309816047,0.48281502,1985.3,1984.8,0.001]
[1771309816675,0.48281502,1985.3,1984.9,0.001]
[1771309817474,0.48281502,1985.3,1984.3,0.49854153]
[1771309817661,0.48281502,1985.3,1984.3,1.26084814]
[1771309817866,0.48281502,1985.3,1984.4,0.49754153]
[1771309818172,1.25931896,1985.2,1984.4,0.49754153]
[1771309818346,0.87,1985.1,1984.4,1.75736684]
[1771309818746,0.87,1985.1,1984.4,0.49754153]
[1771309819063,0.87,1985.1,1984.4,1.75735354]
[1771309819657,0.87,1985.1,1984.4,0.49754153]
[1771309819874,0.87,1985.1,1984.4,1.75736152]
[1771309820078,2.12942267,1985.1,1984.4,1.75736152]
[1771309820266,2.12942267,1985.1,1984.4,0.49754153]
[1771309820660,2.12942267,1985.1,1984.4,1.75736307]
[1771309820977,2.61223769,1985.1,1984.4,0.49754153]
[1771309821282,2.12942267,1985.1,1984.3,1.75842384]
[1771309821578,0.48281502,1985.0,1984.3,0.001]
[1771309821776,0.908,1984.9,1984.3,1.26088794]
[1771309822147,0.908,1984.9,1984.4,0.49754153]
[1771309823078,2.16751148,1984.9,1984.4,0.49754153]
[1771309823485,0.908,1984.9,1984.3,0.001]
[1771309824274,2.1675128,1984.9,1984.3,1.26089013]
[1771309824877,0.908,1984.9,1984.3,1.26089013]
[1771309825178,2.16752272,1984.9,1984.3,1.26089013]
[1771309825886,0.908,1984.9,1984.3,1.26089013]
[1771309826181,2.16751342,1984.9,1984.3,1.26089013]
[1771309826981,2.16752084,1984.9,1984.3,1.26089013]
[1771309827886,0.908,1984.9,1984.3,1.26089013]
[1771309828062,2.16750955,1984.9,1984.3,1.26089013]
[1771309828463,0.908,1984.9,1984.3,1.75843166]
[1771309829793,2.16752032,1984.9,1984.4,0.001]
[1771309830090,0.0011,1984.8,1984.4,0.001]
[1771309830658,0.0011,1984.8,1984.4,0.49854153]
[1771309831897,0.0011,1984.8,1984.4,0.001]
[1771309832086,0.48391502,1984.8,1984.4,0.001]
[1771309833575,0.48391502,1984.8,1984.2,0.001]
[1771309833980,1.74245123,1984.7,1984.2,0.001]
[1771309834196,1.35181502,1984.6,1984.2,0.001]
[1771309834389,0.48281502,1984.5,1984.2,0.001]
[1771309836093,0.48281502,1984.3,1984.2,0.001]
[1771309836265,0.48281502,1984.3,1984.0,0.001]
[1771309836466,0.908,1984.2,1984.0,0.001]
[1771309836690,0.871,1984.1,1984.0,0.001]
[1771309836999,0.871,1984.1,1983.6,0.001]
[1771309837167,1.35381502,1984.1,1983.6,0.001]
[1771309837709,0.871,1984.1,1983.6,0.001]
[1771309838762,2.13102084,1984.1,1983.6,0.001]
[1771309839174,0.871,1984.1,1983.6,0.49854153]
[1771309840273,2.13102172,1984.1,1983.6,0.49854153]
[1771309840475,0.871,1984.1,1983.6,0.49854153]
[1771309840674,1.26067727,1984.8,1983.8,0.49754153]
[1771309840907,0.871,1984.7,1983.8,0.49754153]
[1771309844290,0.871,1984.7,1984.0,0.47984449]
[1771309845585,0.9091,1984.8,1984.0,0.47984449]
[1771309845785,0.8721,1984.6,1984.0,0.47984449]
[1771309846285,0.8721,1984.6,1984.2,0.47984449]
[1771309847173,0.0011,1984.7,1984.2,0.47984449]
[1771309848513,0.0011,1984.7,1984.3,1.25989013]
[1771309848819,0.0011,1984.7,1984.3,1.73973462]
[1771309850605,0.0011,1984.7,1983.9,1.26014416]
[1771309850809,0.46427745,1984.7,1984.0,0.46768697]
[1771309851888,0.46427745,1984.7,1984.0,5.90634283]
[1771309852404,0.46427745,1984.7,1983.8,7.16653441]
[1771309852639,1.72287713,1984.6,1983.8,7.16653441]
[1771309853004,0.46317745,1984.6,1983.9,0.46768697]
[1771309854735,0.8701,1984.7,1984.1,0.46768697]
[1771309855035,0.46317745,1984.6,1983.7,1.26126445]
[1771309855606,0.46317745,1984.6,1983.7,0.001]
[1771309856517,0.46317745,1984.6,1983.7,1.26124038]
[1771309856818,0.46317745,1984.4,1983.7,0.001]
[1771309858745,1.72306758,1984.3,1983.8,0.001]
[1771309859128,0.46317745,1984.2,1983.8,0.001]
[1771309859438,0.868,1984.1,1983.8,0.001]
[1771309861944,0.46317745,1984.0,1983.8,0.001]
[1771309863142,0.46317745,1984.0,1983.6,0.001]
[1771309863924,0.46317745,1983.8,1983.6,0.001]
[1771309865536,0.46317745,1983.8,1983.4,0.001]
[1771309866069,1.72343986,1983.8,1983.4,0.001]
[1771309866769,1.26026241,1983.8,1983.4,0.001]
[1771309866971,0.46317745,1983.7,1983.4,0.001]
[1771309867269,0.871,1983.6,1983.4,0.001]
[1771309867938,1.33417745,1983.6,1983.4,0.001]
[1771309868144,0.871,1983.6,1983.4,0.001]
[1771309869449,0.871,1983.6,1983.4,0.46868697]
[1771309870034,0.87,1983.8,1983.5,1.72808525]
[1771309870563,0.87,1983.8,1983.5,0.46768697]
[1771309870935,0.87,1983.8,1983.4,1.261418]
[1771309871133,0.87,1983.8,1983.5,0.001]
[1771309871862,0.0011,1983.6,1983.5,0.001]
[1771309873961,0.8711,1983.8,1983.5,0.46868697]
[1771309874339,0.0011,1983.8,1983.6,1.26033474]
[1771309874541,0.8701,1983.8,1983.6,1.26033474]
[1771309874740,0.8701,1983.8,1983.5,0.46868697]
[1771309874945,0.8701,1983.8,1983.5,1.72907084]
[1771309875346,0.8701,1983.8,1983.5,0.46868697]
[1771309878362,0.8701,1983.8,1983.5,1.72907138]
[1771309878738,0.8701,1983.8,1983.5,0.46868697]
[1771309879462,0.8701,1983.8,1983.5,1.7290824]
[1771309880368,0.8701,1983.8,1983.6,0.49278783]
[1771309880574,0.868,1984.0,1983.6,0.49278783]
[1771309881477,0.868,1984.0,1983.5,1.75418326]
[1771309882468,0.868,1984.0,1983.5,1.26139543]
[1771309883466,0.0011,1983.7,1983.5,1.26139543]
[1771309884662,0.0011,1983.7,1983.5,1.75418326]
[1771309887053,0.0011,1983.7,1983.5,0.49378783]
[1771309887259,0.0011,1983.7,1983.5,0.001]
[1771309887463,0.0011,1983.7,1983.5,1.26138835]
[1771309890882,0.8691,1984.0,1983.7,5.44244775]
[1771309891086,0.908,1984.1,1983.8,0.49278783]
[1771309891293,5.04017448,1984.5,1983.8,0.49278783]
[1771309891294,1.74948608,1984.5,1983.8,0.49278783]
[1771309891462,1.80359675,1984.4,1983.8,0.49278783]
[1771309891662,0.45098329,1984.3,1983.8,0.49278783]
[1771309891859,0.45098329,1984.2,1983.8,0.49278783]
[1771309892062,0.864,1984.4,1984.0,0.49278783]
[1771309892255,0.0011,1984.5,1984.1,5.93523558]
[1771309892462,0.9091,1984.6,1984.2,0.49278783]
[1771309892696,0.9091,1984.6,1984.3,1.25989013]
[1771309893883,0.9091,1984.6,1984.2,1.75269695]
[1771309895094,0.9091,1984.6,1984.3,0.49278783]
[1771309895798,0.0011,1984.5,1984.3,0.49278783]
[1771309897070,0.0011,1984.5,1984.3,1.75263495]
[1771309898868,0.9091,1984.6,1984.3,1.75263495]
[1771309899392,0.0011,1984.7,1984.3,7.1950827]
[1771309899893,0.0011,1984.7,1984.3,1.25984712]
[1771309900664,0.0011,1984.7,1984.3,1.75263495]
[1771309901184,0.0011,1984.7,1984.2,1.25992589]
[1771309902468,0.0011,1984.7,1984.3,0.49278783]
[1771309902962,0.0011,1984.7,1984.3,5.93040091]
[1771309903190,0.0011,1984.8,1984.5,5.93040091]
[1771309903866,0.0011,1984.8,1984.5,7.19011975]
[1771309904465,0.0011,1984.8,1984.5,1.75250667]
[1771309905378,0.0011,1984.8,1984.5,1.25971884]
[1771309907701,0.0011,1984.7,1984.5,1.25971884]
[1771309910201,0.47179674,1984.7,1984.4,0.001]
[1771309910502,0.0011,1984.7,1984.4,1.26082213]
[1771309910906,0.0011,1984.7,1984.4,0.001]
[1771309913209,0.47179674,1984.7,1984.4,0.001]
[1771309916918,0.0011,1984.7,1984.4,0.001]
[1771309917917,0.0011,1984.7,1984.4,1.71323286]
[1771309918720,0.47179674,1984.7,1984.4,1.26082664]
[1771309919621,0.47179674,1984.7,1984.4,0.001]
[1771309920003,0.47179674,1984.7,1984.5,0.001]
[1771309920190,0.0011,1984.6,1984.5,0.001]
[1771309920594,0.0011,1984.9,1984.5,5.43861308]
[1771309920798,0.47069674,1984.8,1984.5,0.001]
[1771309922300,0.89916482,1984.7,1984.5,0.001]
[1771309922496,0.47069674,1984.7,1984.5,0.001]
[1771309930230,0.89941678,1984.6,1984.5,0.001]
[1771309932709,0.42872004,1984.6,1984.5,0.001]
[1771309933634,0.41769322,1984.6,1984.5,0.001]
[1771309934034,0.0011,1984.7,1984.5,0.001]
[1771309935532,0.48437286,1985.2,1984.5,7.18615479]
[1771309935722,0.41770253,1985.1,1984.5,7.18615479]
[1771309935929,0.41770253,1985.1,1984.5,1.26076316]
[1771309935930,0.48437286,1984.9,1984.5,1.26076316]
[1771309936235,0.90207695,1984.8,1984.5,0.001]
[1771309936437,0.48437286,1984.8,1984.5,0.001]
[1771309936633,0.48657286,1984.7,1984.5,0.001]
[1771309936837,0.855,1984.9,1984.3,0.001]
[1771309936838,0.48437286,1984.5,1984.3,0.001]
[1771309937931,3.50690802,1984.9,1984.3,0.001]
[1771309938240,0.41766214,1984.8,1984.3,0.001]
[1771309938416,0.902035,1984.7,1984.3,0.001]
[1771309938623,0.41766214,1984.6,1984.3,0.001]
[1771309938838,0.48437286,1984.7,1984.3,0.001]
[1771309939041,0.41762938,1984.6,1984.3,0.001]
[1771309939216,0.48437286,1984.7,1984.3,0.001]
[1771309939417,0.41760121,1984.6,1984.3,0.001]
[1771309939664,0.48437286,1984.7,1984.3,0.001]
[1771309939832,0.41760121,1984.6,1984.3,0.001]
[1771309940009,2.24737286,1984.9,1984.3,0.001]
[1771309940216,0.41760083,1984.8,1984.3,0.001]
[1771309940440,0.41760083,1984.7,1984.3,0.001]
[1771309940743,2.24737286,1984.9,1984.3,0.001]
[1771309940944,0.41760622,1984.8,1984.3,0.001]
[1771309941243,0.41760622,1984.7,1984.3,0.001]
[1771309941434,2.24737286,1984.9,1984.3,0.001]
[1771309941744,0.41761258,1984.8,1984.3,0.001]
[1771309941942,0.41761258,1984.7,1984.3,0.001]
[1771309942239,2.24737286,1984.9,1984.3,0.001]
[1771309942427,0.4176201,1984.8,1984.3,0.001]
[1771309942633,0.4176201,1984.7,1984.3,0.001]
[1771309942833,2.24737286,1984.9,1984.3,0.001]
[1771309943145,0.4176201,1984.8,1984.3,0.001]
[1771309943345,0.4176201,1984.7,1984.3,0.001]
[1771309943552,2.24737286,1984.9,1984.3,0.001]
[1771309943716,0.41762855,1984.8,1984.3,0.001]
[1771309943916,0.41762855,1984.7,1984.3,0.001]
[1771309944146,2.24737286,1984.9,1984.3,0.001]
[1771309944321,0.41762855,1984.8,1984.3,0.001]
[1771309944520,0.41762855,1984.7,1984.3,0.001]
[1771309944730,0.48437286,1984.8,1984.4,0.001]
[1771309944927,0.41763768,1984.7,1984.4,0.001]
[1771309945249,0.0011,1984.7,1984.4,0.001]
[1771309946350,0.48547286,1984.7,1984.4,0.001]
[1771309946646,0.48437286,1984.5,1984.4,0.001]
[1771309949547,0.0011,1984.7,1984.4,0.001]
[1771309950576,0.0011,1984.8,1984.4,0.48877855]
[1771309950860,0.4177119,1984.7,1984.4,0.001]
[1771309951169,0.48547286,1984.8,1984.4,1.26082371]
[1771309951457,0.0011,1984.8,1984.4,1.26082371]
[1771309952441,0.0011,1984.8,1984.4,0.001]
[1771309957263,0.0011,1984.7,1984.4,0.48877855]
[1771309958770,0.0011,1984.7,1984.5,1.25976316]
[1771309961466,0.0011,1984.7,1984.4,1.26077614]
[1771309962871,0.0011,1984.7,1984.4,1.26081772]
[1771309964175,0.48547286,1984.7,1984.4,0.001]
[1771309968685,0.48547286,1984.7,1984.5,0.001]
[1771309971082,0.0011,1984.7,1984.5,0.001]
[1771309976165,0.48629795,1984.7,1984.5,0.001]
[1771309979294,0.48519795,1984.6,1984.5,0.001]
[1771309979472,0.407417,1984.6,1984.5,0.001]
[1771309980599,2.15231463,1984.6,1984.5,0.001]
[1771309980804,0.48519795,1984.5,1984.2,0.001]
[1771309981004,0.48519795,1984.5,1983.6,5.04214811]
[1771309981005,0.48519795,1984.3,1983.6,1.26130579]
[1771309981310,1.7426255,1984.2,1983.6,1.74850157]
[1771309981496,1.33519795,1984.2,1983.7,0.0008]
[1771309981874,1.33519795,1984.2,1983.6,1.74850157]
[1771309982069,1.33519795,1984.2,1983.7,0.0008]
[1771309982705,1.33519795,1984.2,1983.8,0.0008]
[1771309982884,1.33519795,1984.2,1983.7,0.0008]
[1771309983199,0.48519795,1984.1,1983.7,0.0008]
[1771309983402,0.48519795,1984.1,1983.6,1.26130579]
[1771309983708,0.48519795,1984.1,1983.7,0.0008]
[1771309985086,0.48519795,1984.1,1983.6,1.26130579]
[1771309985405,0.48519795,1984.1,1983.7,0.0008]
[1771309986581,0.48519795,1984.1,1983.6,1.26130579]
[1771309986776,0.48519795,1984.1,1983.7,0.0008]
[1771309991005,0.48519795,1984.1,1983.8,0.0008]
[1771309991207,1.2599378,1984.3,1983.8,0.48719578]
[1771309991208,0.848,1984.3,1983.8,0.48719578]
[1771309991411,0.848,1984.3,1983.9,0.0008]
[1771309991883,0.848,1984.3,1984.0,0.0008]
[1771309992228,0.848,1984.3,1983.9,0.48799578]